bitfinex/quotes_ETHUSD_20250726
["timestamp","ask_amount","ask_price","bid_price","bid_amount"]
[1753493477208,4.03725085,3724.9,3724.8,0.2502725]
[1753493477402,4.79345085,3724.9,3724.8,0.2502725]
[1753493480007,4.79345085,3724.9,3724.8,0.25114569]
[1753493481716,7.22645085,3724.9,3724.8,0.25114569]
[1753493485822,2.68508657,3724.3,3724.1,0.55]
[1753493485987,0.1344,3724.3,3724.2,0.25108846]
[1753493486292,2.81946833,3724.3,3724.2,0.25108846]
[1753493486693,0.1344,3724.3,3724.2,1.21168846]
[1753493489199,0.1344,3724.3,3724.2,0.25108846]
[1753493489702,0.1344,3724.3,3724.2,1.21168846]
[1753493493120,2.76001503,3724.9,3724.2,1.21168846]
[1753493493436,0.1344,3724.4,3724.3,1.21168846]
[1753493494594,2.81939624,3724.4,3724.3,1.21168846]
[1753493495595,2.81939624,3724.4,3724.3,0.72038846]
[1753493496739,0.1344,3724.4,3724.3,0.72038846]
[1753493497637,0.1344,3724.4,3724.3,0.25108846]
[1753493498094,0.6328,3724.4,3724.3,0.25108846]
[1753493498930,0.1344,3724.4,3724.3,0.25108846]
[1753493499634,2.81939624,3724.4,3724.3,0.25108846]
[1753493499831,0.1344,3724.4,3724.3,0.25108846]
[1753493500729,0.1344,3724.4,3724.3,0.25128995]
[1753493501132,0.1344,3724.4,3724.3,1.21188995]
[1753493502100,0.1344,3724.4,3724.3,0.25128995]
[1753493503530,0.1344,3724.4,3724.3,0.251395]
[1753493504131,3.99768003,3724.4,3724.3,0.251395]
[1753493504427,5.15918003,3724.4,3724.3,0.251395]
[1753493504798,2.68566124,3723.5,3723.3,0.20442565]
[1753493505018,0.823,3723.8,3723.1,0.7636]
[1753493505222,0.823,3723.8,3722.7,4.2]
[1753493505223,3.4043,3723.7,3722.7,0.9606]
[1753493505399,1.66256668,3723.6,3722.7,0.9606]
[1753493505596,2.68606638,3723.0,3722.7,0.9606]
[1753493505794,2.68607863,3722.9,3722.7,0.9606]
[1753493506508,2.68607863,3722.9,3722.8,0.55]
[1753493506706,2.68607863,3722.9,3722.8,0.20615841]
[1753493506923,3.18441431,3723.0,3722.7,0.9606]
[1753493507322,2.68607805,3722.9,3722.8,0.55]
[1753493508248,2.68607805,3722.9,3722.7,0.55]
[1753493509112,2.68594922,3723.1,3722.8,0.4913]
[1753493509313,2.68591684,3723.2,3722.9,0.9606]
[1753493509513,2.68591684,3723.2,3723.0,0.9606]
[1753493509850,2.68591684,3723.2,3723.1,0.9606]
[1753493510348,5.11844492,3723.8,3723.3,0.55]
[1753493510652,2.68550098,3723.7,3723.4,0.9189]
[1753493510848,2.68550098,3723.7,3723.5,0.9189]
[1753493511053,2.68550098,3723.7,3723.5,0.4589]
[1753493511354,2.6855731,3723.6,3723.3,1.4689]
[1753493511648,2.6855731,3723.6,3723.4,0.9189]
[1753493512027,3.18132286,3723.7,3723.4,0.9189]
[1753493512228,2.68552286,3723.7,3723.4,0.9189]
[1753493512447,2.68552286,3723.7,3723.5,0.9189]
[1753493512744,3.19728726,3723.8,3723.5,0.9189]
[1753493513128,2.68550977,3723.7,3723.5,0.9189]
[1753493513736,2.6855731,3723.6,3723.5,0.9189]
[1753493513920,2.68552352,3723.7,3723.5,0.9189]
[1753493514252,0.1344,3723.6,3723.3,0.55]
[1753493514851,0.1344,3723.6,3723.4,0.9189]
[1753493515359,0.1344,3723.6,3723.5,0.9189]
[1753493518022,0.1344,3723.6,3723.3,1.4689]
[1753493518664,2.82002477,3723.6,3723.3,1.4689]
[1753493518838,3.31582477,3723.6,3723.3,1.4689]
[1753493519547,0.6302,3723.6,3723.3,1.4689]
[1753493520659,3.31578341,3723.6,3723.3,1.4689]
[1753493521260,0.6302,3723.6,3723.3,1.4689]
[1753493522165,3.31578055,3723.6,3723.3,1.4689]
[1753493524261,0.1344,3723.6,3723.3,1.4689]
[1753493524633,2.6856505,3723.5,3723.3,1.4689]
[1753493527965,0.9702,3723.4,3723.1,4.2]
[1753493528165,2.82026162,3723.2,3723.1,4.2]
[1753493528465,2.68602581,3723.0,3722.8,2.433]
[1753493528633,3.18187805,3722.9,3722.8,2.433]
[1753493528831,0.6302,3722.9,3722.7,0.55]
[1753493529140,0.6302,3722.9,3722.5,4.2]
[1753493529141,2.68622236,3722.7,3722.5,6.633]
[1753493529352,2.68622236,3722.7,3722.6,0.55]
[1753493529665,3.1605681,3722.8,3722.4,0.55]
[1753493529872,3.27777237,3722.9,3722.4,0.75516692]
[1753493530033,3.27777237,3722.9,3722.4,1.67406692]
[1753493530235,0.4958,3722.8,3722.4,1.67406692]
[1753493530451,3.18195086,3722.8,3722.4,1.67406692]
[1753493532199,0.4958,3722.8,3722.4,1.67406692]
[1753493532561,2.68616506,3722.8,3722.4,1.67406692]
[1753493532740,0.4958,3722.7,3722.4,1.67406692]
[1753493533336,0.59167362,3722.9,3722.4,1.67406692]
[1753493533337,0.4958,3722.6,3722.4,0.20516692]
[1753493533673,0.1344,3722.6,3722.3,0.55]
[1753493533837,0.4958,3722.5,3722.3,0.55]
[1753493536479,0.4958,3722.5,3722.2,3.55]
[1753493537050,0.4958,3722.5,3722.2,4.4689]
[1753493537678,0.4958,3722.5,3722.2,4.67180209]
[1753493538173,0.4958,3722.4,3722.2,0.20290209]
[1753493538374,0.1344,3722.3,3722.1,2.434]
[1753493538977,0.6302,3722.3,3722.0,0.756]
[1753493539154,0.4958,3722.2,3722.1,0.55]
[1753493539354,3.1823832,3722.2,3722.1,0.55]
[1753493540051,0.4649,3722.2,3722.1,0.55]
[1753493540452,0.4649,3722.2,3722.1,0.75466236]
[1753493541661,2.8209114,3722.3,3722.1,0.75466236]
[1753493541866,0.4649,3722.2,3722.1,0.20466236]
[1753493542099,0.9209,3722.2,3721.8,0.55]
[1753493542385,0.5993,3722.1,3721.8,0.55]
[1753493542594,3.28595921,3722.1,3721.8,0.55]
[1753493543176,3.28595921,3722.1,3721.8,1.4828]
[1753493544172,3.28595921,3722.1,3721.8,1.68277902]
[1753493546168,5.44815885,3722.6,3722.0,0.55]
[1753493546375,0.1344,3722.3,3722.0,0.55]
[1753493546571,0.1344,3722.3,3722.1,0.9328]
[1753493548900,0.1344,3722.3,3722.0,0.55]
[1753493549104,0.5993,3722.3,3722.0,0.55]
[1753493550390,0.5993,3722.3,3722.0,1.0064]
[1753493551001,0.4649,3722.2,3721.8,0.19997902]
[1753493551215,0.1344,3722.0,3721.6,4.2]
[1753493551395,2.82128826,3721.8,3721.2,4.3491]
[1753493551574,0.1344,3721.8,3721.3,0.55]
[1753493551772,0.4649,3721.7,3721.2,4.3691]
[1753493552205,0.4649,3721.6,3721.3,0.55]
[1753493552402,0.4649,3721.6,3721.3,1.4828]
[1753493552605,0.4649,3721.6,3721.3,4.4828]
[1753493553307,0.1344,3721.8,3721.3,4.4828]
[1753493553473,2.82127679,3721.8,3721.3,4.4828]
[1753493553677,0.4649,3721.7,3721.3,4.4828]
[1753493554222,0.1344,3721.8,3721.5,0.55]
[1753493554385,0.1344,3721.8,3721.7,3.23694413]
[1753493554585,0.1344,3721.9,3721.7,2.2819]
[1753493554789,0.1344,3721.9,3721.8,0.9328]
[1753493557611,2.68689391,3721.8,3721.3,2.984]
[1753493557811,2.68689391,3721.8,3721.3,0.55]
[1753493558111,1.0553,3721.7,3721.3,0.55]
[1753493558273,0.4649,3721.6,3721.3,0.55]
[1753493558676,0.4649,3721.5,3721.3,0.55]
[1753493559337,0.5993,3721.7,3721.3,0.55]
[1753493559610,0.4649,3721.6,3721.3,3.69363208]
[1753493559813,0.4649,3721.6,3721.3,4.17003208]
[1753493560610,0.4649,3721.6,3721.3,1.4828]
[1753493561109,0.4649,3721.6,3721.3,3.55]
[1753493561302,0.4649,3721.5,3721.3,3.55]
[1753493561499,0.4649,3721.5,3721.3,0.55]
[1753493561815,0.4649,3721.5,3721.3,3.55]
[1753493563090,0.5993,3721.7,3721.3,3.55]
[1753493563312,0.4649,3721.6,3721.3,3.55]
[1753493563514,0.4649,3721.6,3721.3,4.0064]
[1753493564407,0.4649,3721.6,3721.3,4.4828]
[1753493565115,0.4649,3721.6,3721.3,4.0064]
[1753493565494,0.1344,3721.7,3721.3,3.55]
[1753493565688,0.4649,3721.6,3721.3,0.55]
[1753493565906,0.5904,3721.7,3721.3,3.55]
[1753493566083,0.4649,3721.5,3721.3,3.55]
[1753493567516,0.4649,3721.5,3721.3,0.55]
[1753493571812,0.5894,3721.7,3721.3,1.4712]
[1753493572017,0.1344,3721.7,3721.3,1.4712]
[1753493572236,0.455,3721.6,3721.3,1.4712]
[1753493572388,2.68704884,3721.6,3721.3,1.0095]
[1753493572587,0.455,3721.5,3721.3,0.55]
[1753493577009,0.5894,3721.7,3721.3,0.55]
[1753493577329,0.455,3721.6,3721.3,1.4712]
[1753493577716,2.82135109,3721.7,3721.3,0.55]
[1753493578035,0.455,3721.5,3721.3,0.55]
[1753493578526,4.1521766,3721.7,3721.3,1.4712]
[1753493578710,1.46522551,3721.7,3721.3,1.4712]
[1753493578912,1.46522551,3721.7,3721.4,0.4595]
[1753493579114,1.46522551,3721.7,3721.4,0.9212]
[1753493579330,0.5894,3721.7,3721.4,0.9212]
[1753493579543,0.1344,3721.7,3721.5,0.4595]
[1753493579839,0.1344,3721.7,3721.5,0.9212]
[1753493580700,0.1344,3721.7,3721.4,0.8033]
[1753493580899,0.1344,3721.7,3721.6,0.9212]
[1753493581631,0.1344,3721.7,3721.4,1.7245]
[1753493581820,0.1344,3721.7,3721.4,1.265]
[1753493582140,0.1344,3721.7,3721.5,0.9212]
[1753493582537,0.1344,3721.7,3721.4,0.8033]
[1753493582730,0.5894,3721.7,3721.4,0.4595]
[1753493583133,3.14205883,3721.6,3721.3,1.0117]
[1753493583427,3.14205883,3721.6,3721.3,1.4712]
[1753493583848,0.455,3721.5,3721.3,0.55]
[1753493584550,3.91632943,3721.5,3721.3,0.55]
[1753493584762,3.91632943,3721.5,3721.2,0.19883797]
[1753493584763,0.455,3721.4,3721.2,0.19883797]
[1753493584907,3.14221023,3721.4,3721.2,0.19883797]
[1753493585240,0.455,3721.3,3721.1,0.55]
[1753493585642,0.1344,3721.5,3721.1,0.55]
[1753493585946,0.1344,3721.5,3721.2,0.9212]
[1753493586146,0.1344,3721.5,3721.1,0.55]
[1753493586447,0.1344,3721.5,3721.3,0.9212]
[1753493587514,0.1344,3721.5,3721.2,0.19967604]
[1753493587714,0.1344,3721.5,3721.3,0.9212]
[1753493587921,0.1344,3721.5,3721.1,0.55]
[1753493588127,0.1344,3721.5,3721.3,0.9212]
[1753493588552,0.1344,3721.5,3721.3,0.4595]
[1753493588754,3.27648947,3721.5,3721.1,1.4712]
[1753493589129,0.455,3721.4,3721.1,1.4712]
[1753493589958,0.455,3721.4,3721.1,1.0095]
[1753493590459,0.455,3721.4,3721.1,1.20951935]
[1753493590655,0.455,3721.4,3721.1,0.75001935]
[1753493590868,2.68730517,3721.2,3721.1,0.20001935]
[1753493591050,2.68751139,3721.0,3720.4,0.9212]
[1753493591354,0.1344,3720.8,3720.4,0.9212]
[1753493591561,0.5894,3720.8,3720.4,3.9212]
[1753493591855,0.455,3720.7,3720.4,3.9212]
[1753493592352,0.1344,3720.8,3720.5,0.55]
[1753493592553,0.1344,3720.8,3720.5,4.66886025]
[1753493592747,0.1344,3720.8,3720.6,0.4595]
[1753493593059,0.1344,3720.8,3720.6,0.9212]
[1753493593554,0.5894,3720.8,3720.5,0.74766025]
[1753493594150,0.5894,3720.8,3720.5,1.66886025]
[1753493594367,0.5894,3720.8,3720.5,0.74766025]
[1753493594528,0.455,3720.7,3720.5,0.74766025]
[1753493594728,0.1344,3720.8,3720.5,1.20716025]
[1753493594958,2.434,3721.1,3720.8,0.55]
[1753493595262,0.1344,3721.0,3720.6,0.55]
[1753493595463,0.1344,3721.0,3720.8,0.9212]
[1753493595629,0.1344,3721.0,3720.8,0.4595]
[1753493596663,0.1344,3721.0,3720.8,0.9212]
[1753493599062,0.5894,3721.0,3720.7,0.55]
[1753493599474,0.455,3720.9,3720.7,0.55]
[1753493599836,0.455,3720.8,3720.7,0.55]
[1753493600573,0.455,3720.8,3720.6,0.55]
[1753493600776,0.4636,3720.7,3720.6,0.55]
[1753493601661,0.1344,3720.8,3720.5,2.63264838]
[1753493601835,0.4636,3720.7,3720.5,0.19864838]
[1753493602036,2.6876978,3720.7,3720.4,3.55]
[1753493602281,0.4636,3720.6,3720.4,3.55]
[1753493602440,0.4636,3720.6,3720.4,0.55]
[1753493602642,0.4636,3720.5,3720.4,0.55]
[1753493603074,1.29265268,3720.8,3720.1,0.1344]
[1753493603373,0.1344,3720.3,3720.0,2.434]
[1753493603669,0.1344,3720.3,3720.0,1.4791]
[1753493604193,0.598,3720.3,3720.0,1.4791]
[1753493604872,2.82237596,3720.3,3720.0,0.55]
[1753493605071,0.4636,3720.2,3720.0,3.74684879]
[1753493605873,0.4636,3720.2,3720.0,0.74684879]
[1753493607570,0.4636,3720.1,3720.0,0.74684879]
[1753493608272,0.7643,3720.0,3719.3,0.4733]
[1753493608458,0.1344,3719.7,3719.4,5.434]
[1753493608637,0.1344,3719.7,3719.4,3.3631]
[1753493608833,0.1344,3719.7,3719.4,2.434]
[1753493609173,0.1344,3719.7,3719.4,2.8898]
[1753493609475,0.1344,3719.7,3719.5,0.9291]
[1753493609875,0.1344,3719.7,3719.4,5.12259538]
[1753493610038,0.1344,3719.7,3719.6,0.9291]
[1753493610849,0.1344,3719.7,3719.6,1.12576727]
[1753493611278,0.1344,3719.7,3719.6,0.74666727]
[1753493611592,0.1344,3720.0,3719.7,3.23835375]
[1753493611756,0.1344,3720.0,3719.8,0.9291]
[1753493612285,0.1344,3720.0,3719.9,0.9291]
[1753493612469,0.1344,3720.0,3719.9,2.6882443]
[1753493612638,0.7643,3720.6,3719.9,2.6882443]
[1753493612639,0.1344,3720.2,3720.0,0.55]
[1753493612838,0.1344,3720.2,3720.1,0.9291]
[1753493615548,0.1344,3720.2,3720.1,0.4558]
[1753493615879,0.1344,3720.2,3720.0,0.55]
[1753493616279,0.1344,3720.2,3720.0,1.4791]
[1753493616483,0.1344,3720.2,3719.7,2.5694]
[1753493616484,0.46298217,3720.2,3719.7,0.1344]
[1753493616672,2.6881858,3720.0,3719.6,0.19666727]
[1753493616867,0.1344,3719.8,3719.5,2.435]
[1753493617254,0.4636,3719.7,3719.5,2.435]
[1753493617747,0.1344,3719.8,3719.5,2.435]
[1753493617947,0.598,3719.8,3719.5,2.435]
[1753493618160,0.598,3719.8,3719.5,2.8908]
[1753493618362,0.598,3719.8,3719.5,0.4558]
[1753493620466,0.598,3719.8,3719.5,0.9291]
[1753493620852,0.598,3719.8,3719.5,0.4558]
[1753493621058,0.4636,3719.7,3719.5,0.55]
[1753493621491,0.1344,3719.8,3719.5,0.55]
[1753493621696,0.1344,3719.8,3719.5,1.4791]
[1753493622589,0.598,3719.8,3719.5,1.4791]
[1753493622805,0.598,3719.8,3719.5,0.55]
[1753493622987,0.4636,3719.7,3719.5,0.55]
[1753493623383,1.0507001,3719.8,3719.5,0.55]
[1753493623694,0.4636,3719.7,3719.5,0.55]
[1753493623862,0.4636,3719.7,3719.4,0.55]
[1753493625176,0.4636,3719.6,3719.4,0.55]
[1753493625695,0.4636,3719.5,3719.3,3.55]
[1753493625904,2.68851204,3719.6,3719.3,0.55]
[1753493626088,0.4636,3719.4,3719.3,0.55]
[1753493626474,0.4636,3719.4,3719.2,0.55]
[1753493626800,0.1344,3719.5,3719.2,0.55]
[1753493627099,0.1344,3719.5,3719.2,1.4791]
[1753493627284,0.1344,3719.5,3719.3,0.4558]
[1753493627604,0.1344,3719.5,3719.3,0.9291]
[1753493627903,0.1344,3719.5,3719.2,0.55]
[1753493628081,0.1344,3719.5,3719.4,0.9291]
[1753493633013,0.6255,3719.5,3719.1,2.435]
[1753493633174,0.1344,3719.3,3719.1,2.435]
[1753493633789,0.1344,3719.3,3719.1,2.8991]
[1753493634283,0.1344,3719.3,3719.1,0.4641]
[1753493634680,0.1344,3719.3,3719.1,2.8991]
[1753493635800,0.1344,3719.3,3719.1,0.4641]
[1753493636124,0.1344,3719.3,3719.1,2.8991]
[1753493637514,0.1344,3719.3,3719.1,2.435]
[1753493637720,0.1344,3719.3,3719.1,3.3743]
[1753493638024,0.4542001,3719.8,3719.2,2.255]
[1753493638221,0.1344,3719.4,3719.2,4.94375026]
[1753493638425,0.1344,3719.4,3719.2,1.3157]
[1753493638598,0.1344,3719.4,3719.3,0.9393]
[1753493642648,0.1344,3719.4,3719.3,3.62797797]
[1753493643000,2.68808224,3720.2,3719.5,2.68851855]
[1753493643194,0.1344,3719.7,3719.5,2.435]
[1753493643606,0.1344,3719.7,3719.5,2.8991]
[1753493643915,0.1344,3719.7,3719.5,3.3743]
[1753493644208,2.68811336,3720.1,3719.5,3.3743]
[1753493644209,0.1344,3719.8,3719.6,1.4893]
[1753493644900,0.1344,3719.8,3719.6,4.17775254]
[1753493645100,0.1344,3719.8,3719.6,1.4893]
[1753493646636,0.1344,3719.8,3719.7,0.9393]
[1753493646811,0.1344,3719.9,3719.7,4.37958884]
[1753493647015,0.1344,3719.9,3719.8,0.9393]
[1753493649231,0.1344,3719.9,3719.7,2.435]
[1753493650315,0.1344,3719.9,3719.7,5.59858191]
[1753493650515,0.1344,3719.9,3719.8,0.9393]
[1753493652003,0.26880185,3720.2,3719.8,0.9393]
[1753493652211,0.26880185,3720.2,3719.7,2.435]
[1753493652212,0.1344,3720.1,3719.9,0.9393]
[1753493652523,0.1344,3720.1,3719.9,3.16343041]
[1753493652728,0.1344,3720.1,3720.0,0.9393]
[1753493653306,0.1344,3720.1,3720.0,1.4893]
[1753493653507,0.1344,3720.2,3720.0,3.62745234]
[1753493653705,0.1344,3720.2,3720.0,2.68815234]
[1753493653929,0.1344,3720.2,3720.1,4.17739978]
[1753493654129,0.1344,3720.4,3720.3,3.23792489]
[1753493654331,4.0062567,3721.0,3720.3,3.62723234]
[1753493654543,0.1344,3720.6,3720.4,0.4752]
[1753493655045,0.1344,3720.6,3720.2,0.8057]
[1753493655046,2.68818731,3720.0,3719.7,0.55]
[1753493655544,2.68818731,3720.0,3719.5,2.436]
[1753493655545,0.8277,3719.8,3719.6,0.55]
[1753493655840,0.8277,3719.8,3719.5,2.436]
[1753493655841,0.4911,3719.7,3719.5,2.436]
[1753493657220,3.98173688,3719.8,3719.5,2.436]
[1753493657431,0.4911,3719.6,3719.5,2.986]
[1753493659357,0.4911,3719.6,3719.2,0.9393]
[1753493659518,2.68840681,3719.7,3719.4,2.436]
[1753493659718,0.4911,3719.6,3719.4,2.436]
[1753493664856,0.6255,3719.6,3719.4,2.436]
[1753493669266,3.31398984,3719.6,3719.4,2.436]
[1753493669472,0.4686,3719.5,3719.4,2.986]
[1753493669670,3.29147831,3719.6,3719.4,2.436]
[1753493669843,2.6885334,3719.5,3719.4,2.986]
[1753493670167,0.4686,3719.5,3719.4,2.986]
[1753493670527,0.4686,3719.5,3719.4,0.55]
[1753493671633,0.1344,3719.6,3719.4,0.55]
[1753493671836,3.2914649,3719.6,3719.4,0.55]
[1753493673067,2.6885334,3719.5,3719.4,0.55]
[1753493673367,3.29148491,3719.6,3719.4,0.55]
[1753493674878,3.1571334,3719.5,3719.4,0.55]
[1753493675377,3.1571334,3719.5,3719.0,2.63742791]
[1753493675378,2.68880346,3719.2,3719.0,2.63742791]
[1753493675582,2.68882256,3719.1,3718.9,0.55]
[1753493675731,3.15742256,3719.1,3718.9,0.55]
[1753493676481,0.4686,3719.1,3718.9,0.55]
[1753493676687,0.4686,3719.1,3718.7,3.5923]
[1753493676688,0.44905398,3719.1,3718.7,0.1344]
[1753493676868,2.8234197,3718.9,3718.6,6.636]
[1753493677063,0.4686,3718.8,3718.6,4.2]
[1753493677271,3.15766785,3718.8,3718.6,4.2]
[1753493677581,0.4686,3718.8,3718.6,4.40111494]
[1753493679045,0.1344,3718.9,3718.6,4.40111494]
[1753493679383,0.1344,3718.9,3718.6,1.13791494]
[1753493679384,0.603,3718.9,3718.6,1.13791494]
[1753493686891,0.603,3718.9,3718.6,0.20111494]
[1753493687241,0.603,3718.9,3718.5,0.55]
[1753493687441,0.603,3718.9,3718.5,1.0289]
[1753493687679,0.603,3718.9,3718.5,1.4868]
[1753493688483,0.603,3718.9,3718.5,1.0289]
[1753493688685,0.603,3718.9,3718.6,0.4579]
[1753493690654,0.603,3718.9,3718.5,1.23536403]
[1753493690655,0.1344,3718.9,3718.5,1.23536403]
[1753493690858,0.4846,3718.8,3718.5,1.23536403]
[1753493691059,0.4846,3718.8,3718.5,1.66726403]
[1753493695082,0.1344,3718.9,3718.6,0.9091]
[1753493695269,2.82337385,3718.9,3718.6,0.9091]
[1753493695470,3.30797385,3718.9,3718.6,0.9091]
[1753493696603,0.619,3718.9,3718.6,0.9091]
[1753493698820,0.1344,3718.9,3718.6,0.9091]
[1753493698999,0.1344,3718.9,3718.7,0.9091]
[1753493700218,0.1344,3718.9,3718.8,0.9091]
[1753493700529,2.436,3719.2,3718.8,0.9091]
[1753493700682,0.1344,3719.0,3718.8,0.55]
[1753493700885,3.17362893,3718.9,3718.6,0.55]
[1753493701087,0.619,3718.8,3718.6,0.55]
[1753493701288,0.4846,3718.7,3718.6,0.55]
[1753493701527,0.4846,3718.7,3718.5,0.20646403]
[1753493701732,2.82345124,3718.8,3718.3,2.436]
[1753493701903,0.4846,3718.6,3718.4,0.55]
[1753493702922,0.1344,3718.8,3718.4,0.55]
[1753493703089,0.4846,3718.7,3718.4,1.4591]
[1753493703629,0.1344,3718.8,3718.4,1.0272]
[1753493703829,0.619,3718.8,3718.4,1.0272]
[1753493703991,0.619,3718.8,3718.4,1.4591]
[1753493704496,0.619,3718.8,3718.4,0.55]
[1753493704703,0.1344,3718.8,3718.5,0.4319]
[1753493704915,0.4846,3718.7,3718.5,0.4319]
[1753493705120,0.1344,3718.8,3718.5,0.4319]
[1753493705320,0.619,3718.8,3718.5,0.9091]
[1753493705520,2.82345337,3718.8,3718.4,0.55]
[1753493705829,0.1344,3718.6,3718.4,0.20398211]
[1753493706028,0.1344,3718.6,3718.2,0.55]
[1753493706191,0.44,3718.5,3717.7,3.827]
[1753493706526,0.44,3718.5,3717.8,3.3451]
[1753493706527,0.1344,3718.1,3717.8,3.3451]
[1753493706731,0.1344,3718.1,3717.9,2.4061]
[1753493706893,5.12605439,3718.8,3718.1,0.827]
[1753493707094,0.1344,3718.5,3718.2,1.4591]
[1753493707290,0.1344,3718.5,3718.3,0.9091]
[1753493707692,0.1344,3718.5,3718.4,0.4319]
[1753493707898,0.1344,3718.5,3718.4,0.9091]
[1753493708621,0.1344,3718.5,3718.4,0.4319]
[1753493708801,0.1344,3718.5,3718.2,1.66534207]
[1753493709699,0.1344,3718.5,3718.2,4.35481371]
[1753493710034,0.1344,3718.5,3718.3,0.9091]
[1753493710535,0.1344,3718.5,3718.2,3.44571504]
[1753493710736,0.1344,3718.5,3718.3,0.9091]
[1753493710935,2.437,3719.0,3718.4,0.55]
[1753493711241,0.1344,3718.8,3718.6,0.55]
[1753493711416,0.1344,3718.8,3718.7,0.9091]
[1753493711931,2.437,3719.2,3718.8,0.55]
[1753493712133,0.1344,3719.0,3718.9,0.9091]
[1753493713273,2.437,3719.7,3719.1,0.778]
[1753493713572,0.1344,3719.3,3719.2,0.9091]
[1753493715069,0.1344,3719.3,3719.1,0.778]
[1753493715572,0.1344,3719.3,3719.0,1.4591]
[1753493715744,0.619,3719.3,3719.0,1.4591]
[1753493716540,0.619,3719.3,3719.0,0.9091]
[1753493716742,0.33076088,3719.2,3719.0,0.9091]
[1753493717672,0.33076088,3719.2,3719.1,0.9091]
[1753493717983,0.1344,3719.3,3719.1,0.9091]
[1753493718152,0.1344,3719.3,3719.2,0.4319]
[1753493718476,0.1344,3719.3,3719.2,0.9091]
[1753493722381,0.1344,3719.3,3719.2,0.4319]
[1753493723083,0.1344,3719.3,3719.0,0.9111]
[1753493723288,0.1344,3719.3,3719.0,2.68888449]
[1753493723488,0.1344,3719.3,3719.1,0.9111]
[1753493724293,0.1344,3719.3,3719.2,0.9111]
[1753493724460,0.3238,3719.6,3719.1,3.59986063]
[1753493724777,0.45448,3719.5,3719.3,2.6886308]
[1753493725182,0.32008,3719.5,3719.4,0.9111]
[1753493725490,2.5704,3719.6,3719.4,0.9111]
[1753493725860,2.5704,3719.6,3719.4,0.4823]
[1753493726057,2.5704,3719.6,3719.5,0.4288]
[1753493726461,2.5704,3719.6,3719.4,0.4823]
[1753493726696,0.57529287,3719.5,3719.4,0.4823]
[1753493728008,0.57529287,3719.5,3719.4,3.59970568]
[1753493728172,2.5704,3719.6,3719.4,3.59970568]
[1753493728500,2.5704,3719.6,3719.5,0.9111]
[1753493730304,2.5704,3719.6,3719.5,0.4288]
[1753493730510,2.436,3719.6,3719.5,0.9111]
[1753493731014,2.436,3719.6,3719.5,0.4288]
[1753493731195,2.436,3719.6,3719.5,3.1173334]
[1753493731505,2.436,3719.6,3719.5,3.5996334]
[1753493731694,0.1344,3719.8,3719.5,3.5996334]
[1753493731898,0.1344,3719.8,3719.3,3.59197266]
[1753493731899,0.32012,3719.8,3719.6,3.59952125]
[1753493733507,2.5694,3719.9,3719.7,0.9111]
[1753493733709,2.5694,3719.9,3719.7,3.59948742]
[1753493736011,2.5694,3719.9,3719.8,2.68831657]
[1753493736315,2.435,3719.9,3719.8,3.59941657]
[1753493736477,2.435,3719.9,3719.8,3.11711657]
[1753493736808,2.435,3719.9,3719.8,2.68831657]
[1753493737003,2.435,3719.9,3719.8,4.39851657]
[1753493737179,0.6286,3720.1,3719.8,2.68831657]
[1753493737379,0.4942,3719.9,3719.7,2.68837278]
[1753493737827,0.1344,3720.1,3719.7,2.68837278]
[1753493738031,1.23150856,3720.1,3719.8,2.68830943]
[1753493738201,0.4942,3720.0,3719.8,2.68830943]
[1753493738404,0.4942,3720.0,3719.7,3.59947347]
[1753493738804,1.7116,3719.9,3719.6,2.82285521]
[1753493739016,0.4942,3719.8,3719.6,2.82285521]
[1753493739203,0.4942,3719.8,3719.7,2.68838884]
[1753493739507,0.73730856,3720.1,3719.6,0.1344]
[1753493739508,0.4942,3719.7,3719.6,3.37284749]
[1753493740231,0.4942,3719.9,3719.7,2.68838157]
[1753493740752,3.66650856,3720.1,3719.7,2.68838157]
[1753493741034,0.48839086,3720.0,3719.7,2.68838157]
[1753493741240,0.98259086,3720.0,3719.7,2.68838157]
[1753493741728,0.48839086,3720.0,3719.8,2.68830218]
[1753493742338,0.48839086,3720.0,3719.8,0.9111]
[1753493743114,0.48839086,3720.0,3719.8,3.59939958]
[1753493743737,0.48839086,3720.0,3719.8,0.9111]
[1753493743932,0.48839086,3720.0,3719.7,2.68836991]
[1753493744138,0.7529,3720.8,3720.3,2.68789079]
[1753493744337,2.82223527,3720.5,3720.0,0.1344]
[1753493744633,0.9587,3720.4,3720.0,0.1344]
[1753493744832,0.45337632,3720.3,3720.0,2.82256671]
[1753493745041,0.4942,3720.2,3720.0,2.82256671]
[1753493746941,0.1344,3720.5,3720.2,2.68797144]
[1753493747233,0.1344,3720.5,3720.3,0.9111]
[1753493747459,3.44029591,3721.1,3720.4,2.68788302]
[1753493747624,0.1344,3720.8,3720.4,3.59898302]
[1753493748319,0.4942,3720.7,3720.4,3.59898302]
[1753493751762,0.4942,3720.7,3720.3,0.1344]
[1753493751763,0.759,3720.6,3720.3,0.33965317]
[1753493751937,0.4992,3720.5,3720.3,0.1344]
[1753493752116,0.68503,3720.5,3720.3,0.1344]
[1753493752724,3.6528054,3720.4,3719.9,4.2]
[1753493753049,0.9649,3720.3,3719.9,4.2]
[1753493753222,0.1344,3720.2,3719.9,4.2]
[1753493753424,0.6336,3720.2,3719.9,4.2]
[1753493753679,0.53169586,3720.2,3719.9,4.2]
[1753493753832,0.4992,3720.1,3719.9,4.40608007]
[1753493755630,0.4992,3720.1,3719.9,4.2]